[Event "Early-Titled-Tuesday-Blitz-October-17-2023"]
[Site "Chess.com"]
[Date "2023.10.17"]
[Round "4"]
[White "ural58"]
[Black "Lennis93"]
[Result "0-1"]
[WhiteElo "2530"]
[BlackElo "2708"]
[TimeControl "180+1"]
[EndTime "8:41:01 PDT"]
[Termination "Lennis93 won on time"]

1. e4 {[%clk 0:03:00.9]} 1... c6 {[%clk 0:02:57.9]} 2. Nf3 {[%clk 0:02:45.7]}
2... d5 {[%clk 0:02:58.8]} 3. e5 {[%clk 0:02:45]} 3... Bg4 {[%clk 0:02:57.7]} 4.
Be2 {[%clk 0:02:44.3]} 4... e6 {[%clk 0:02:58]} 5. O-O {[%clk 0:02:44.4]} 5...
Ne7 {[%clk 0:02:58.3]} 6. d4 {[%clk 0:02:38.1]} 6... Nd7 {[%clk 0:02:58.5]} 7.
Nfd2 {[%clk 0:02:19.9]} 7... Bxe2 {[%clk 0:02:55.6]} 8. Qxe2 {[%clk 0:02:20.1]}
8... Nf5 {[%clk 0:02:55.1]} 9. Nb3 {[%clk 0:02:09.5]} 9... c5 {[%clk 0:02:52.7]}
10. dxc5 {[%clk 0:02:07.2]} 10... Bxc5 {[%clk 0:02:48.5]} 11. Nxc5 {[%clk
0:02:05.7]} 11... Nxc5 {[%clk 0:02:48.2]} 12. Be3 {[%clk 0:01:43.6]} 12... Rc8
{[%clk 0:02:44.5]} 13. c3 {[%clk 0:01:35.3]} 13... O-O {[%clk 0:02:44]} 14. Nd2
{[%clk 0:01:25.6]} 14... Nxe3 {[%clk 0:02:31]} 15. Qxe3 {[%clk 0:01:25]} 15...
Qb6 {[%clk 0:02:29.5]} 16. Nb3 {[%clk 0:01:07.9]} 16... Na4 {[%clk 0:02:00.5]}
17. Qe2 {[%clk 0:00:57.9]} 17... Qa6 {[%clk 0:01:52]} 18. Qxa6 {[%clk
0:00:52.7]} 18... bxa6 {[%clk 0:01:52.9]} 19. Rab1 {[%clk 0:00:52.7]} 19... Rb8
{[%clk 0:01:53.5]} 20. f4 {[%clk 0:00:46.1]} 20... g6 {[%clk 0:01:53.4]} 21. Kf2
{[%clk 0:00:45.5]} 21... Rfc8 {[%clk 0:01:52.6]} 22. Rfd1 {[%clk 0:00:42.3]}
22... Rb5 {[%clk 0:01:45.4]} 23. g3 {[%clk 0:00:41.6]} 23... a5 {[%clk 0:01:45]}
24. Rd2 {[%clk 0:00:26]} 24... Nxc3 {[%clk 0:01:23.3]} 25. bxc3 {[%clk
0:00:25.4]} 25... a4 {[%clk 0:01:23.8]} 26. Rdb2 {[%clk 0:00:18.4]} 26... axb3
{[%clk 0:01:23.9]} 27. Rxb3 {[%clk 0:00:18.7]} 27... Ra5 {[%clk 0:01:24.2]} 28.
a3 {[%clk 0:00:18.5]} 28... Kg7 {[%clk 0:01:17.4]} 29. Ke3 {[%clk 0:00:18.7]}
29... Rc4 {[%clk 0:01:16.7]} 30. Rd1 {[%clk 0:00:17]} 30... Re4+ {[%clk
0:01:15.9]} 31. Kd3 {[%clk 0:00:14.8]} 31... Rea4 {[%clk 0:01:14.4]} 32. Ra1
{[%clk 0:00:14.6]} 32... g5 {[%clk 0:01:14.5]} 33. fxg5 {[%clk 0:00:13.5]} 33...
Re4 {[%clk 0:01:14.2]} 34. a4 {[%clk 0:00:11.2]} 34... Rxe5 {[%clk 0:01:14.4]}
35. Rb5 {[%clk 0:00:11.1]} 35... Ra6 {[%clk 0:01:11.4]} 36. h4 {[%clk
0:00:10.8]} 36... Re4 {[%clk 0:01:09.4]} 37. a5 {[%clk 0:00:11]} 37... Rg4
{[%clk 0:01:08.6]} 38. Rg1 {[%clk 0:00:09.6]} 38... Kg6 {[%clk 0:01:04.8]} 39.
Ke3 {[%clk 0:00:09.7]} 39... Rc6 {[%clk 0:01:04.8]} 40. Rb3 {[%clk 0:00:08.5]}
40... Rc5 {[%clk 0:01:03.6]} 41. Kf3 {[%clk 0:00:05.1]} 41... Rgc4 {[%clk
0:01:01.3]} 42. Rc1 {[%clk 0:00:02.2]} 42... Rxa5 {[%clk 0:00:59.9]} 43. Rb8
{[%clk 0:00:02]} 43... Kg7 {[%clk 0:00:58]} 0-1

[Event "Early-Titled-Tuesday-Blitz-October-17-2023"]
[Site "Chess.com"]
[Date "2023.10.17"]
[Round "4"]
[White "Zavgorodniy_Sergiy"]
[Black "subham777"]
[Result "0-1"]
[WhiteElo "2668"]
[BlackElo "2542"]
[TimeControl "180+1"]
[EndTime "8:41:01 PDT"]
[Termination "subham777 won by resignation"]

1. e4 {[%clk 0:03:00.9]} 1... e6 {[%clk 0:02:59.1]} 2. d3 {[%clk 0:02:57.6]}
2... c5 {[%clk 0:02:58.5]} 3. Nf3 {[%clk 0:02:57.1]} 3... Nc6 {[%clk 0:02:58.5]}
4. g3 {[%clk 0:02:56.3]} 4... g6 {[%clk 0:02:58.1]} 5. Bg5 {[%clk 0:02:55]} 5...
Qb6 {[%clk 0:02:47.3]} 6. Nbd2 {[%clk 0:02:51.3]} 6... Bg7 {[%clk 0:02:45.8]} 7.
Rb1 {[%clk 0:02:42.1]} 7... Nge7 {[%clk 0:02:40.4]} 8. Bg2 {[%clk 0:02:40.4]}
8... O-O {[%clk 0:02:38.1]} 9. O-O {[%clk 0:02:38.8]} 9... h6 {[%clk 0:02:37.2]}
10. Bxe7 {[%clk 0:02:32.6]} 10... Nxe7 {[%clk 0:02:36.5]} 11. c3 {[%clk
0:02:32.3]} 11... e5 {[%clk 0:02:29.4]} 12. Nc4 {[%clk 0:02:18.3]} 12... Qc7
{[%clk 0:02:29.2]} 13. b4 {[%clk 0:02:18.9]} 13... cxb4 {[%clk 0:02:20.7]} 14.
cxb4 {[%clk 0:02:19.8]} 14... d6 {[%clk 0:02:19.5]} 15. Nfd2 {[%clk 0:02:05.7]}
15... Be6 {[%clk 0:02:16.9]} 16. Qa4 {[%clk 0:02:00.5]} 16... a6 {[%clk
0:02:08.5]} 17. Rfc1 {[%clk 0:01:57.5]} 17... b5 {[%clk 0:01:59.5]} 18. Qa5
{[%clk 0:01:57.5]} 18... Qxa5 {[%clk 0:01:50]} 19. Nxa5 {[%clk 0:01:58.4]} 19...
Bxa2 {[%clk 0:01:50.2]} 20. Ra1 {[%clk 0:01:58.5]} 20... Be6 {[%clk 0:01:49]}
21. Nb7 {[%clk 0:01:55.1]} 21... Nc8 {[%clk 0:01:42]} 22. Rc6 {[%clk 0:01:46.2]}
22... Ra7 {[%clk 0:01:17.5]} 23. Nxd6 {[%clk 0:01:35.9]} 23... Nxd6 {[%clk
0:01:17.9]} 24. Rxd6 {[%clk 0:01:35.6]} 24... Rfa8 {[%clk 0:01:18.4]} 25. d4
{[%clk 0:01:13.5]} 25... exd4 {[%clk 0:01:06.7]} 26. e5 {[%clk 0:01:12.3]} 26...
Bxe5 {[%clk 0:00:51]} 27. Rxe6 {[%clk 0:01:07]} 27... fxe6 {[%clk 0:00:50.9]}
28. Bxa8 {[%clk 0:01:06.9]} 28... Rxa8 {[%clk 0:00:51.7]} 29. Re1 {[%clk
0:01:03.4]} 29... Bd6 {[%clk 0:00:45.7]} 30. Rxe6 {[%clk 0:01:02.5]} 30... Bxb4
{[%clk 0:00:45.6]} 31. Nb3 {[%clk 0:01:01.2]} 31... d3 {[%clk 0:00:33.7]} 32.
Rxg6+ {[%clk 0:01:00.1]} 32... Kh7 {[%clk 0:00:33.5]} 33. Rg4 {[%clk 0:00:58.9]}
33... a5 {[%clk 0:00:31.3]} 34. Rd4 {[%clk 0:00:56.7]} 34... d2 {[%clk
0:00:31.5]} 35. Kf1 {[%clk 0:00:51.7]} 35... a4 {[%clk 0:00:22.4]} 36. Na1
{[%clk 0:00:47.5]} 36... Bc3 {[%clk 0:00:20.8]} 37. Rd7+ {[%clk 0:00:47.6]}
37... Kg8 {[%clk 0:00:20.6]} 38. Nc2 {[%clk 0:00:48.5]} 38... b4 {[%clk
0:00:19.3]} 39. Ke2 {[%clk 0:00:47.5]} 39... b3 {[%clk 0:00:17.1]} 40. Na3
{[%clk 0:00:47.5]} 40... Re8+ {[%clk 0:00:16.2]} 41. Kf3 {[%clk 0:00:47]} 41...
Re1 {[%clk 0:00:14.3]} 0-1

[Event "Early-Titled-Tuesday-Blitz-October-17-2023"]
[Site "Chess.com"]
[Date "2023.10.17"]
[Round "4"]
[White "Doomfist26"]
[Black "PoXerStar"]
[Result "1-0"]
[WhiteElo "2633"]
[BlackElo "2425"]
[TimeControl "180+1"]
[EndTime "8:41:01 PDT"]
[Termination "Doomfist26 won by resignation"]

1. e4 {[%clk 0:02:57.8]} 1... Nc6 {[%clk 0:02:58.5]} 2. Nf3 {[%clk 0:02:52.9]}
2... g6 {[%clk 0:02:52]} 3. d4 {[%clk 0:02:48.9]} 3... d5 {[%clk 0:02:52.4]} 4.
exd5 {[%clk 0:02:46.8]} 4... Qxd5 {[%clk 0:02:53.3]} 5. c4 {[%clk 0:02:46.3]}
5... Qd8 {[%clk 0:02:50.8]} 6. d5 {[%clk 0:02:46.7]} 6... Nb8 {[%clk 0:02:47.9]}
7. Nc3 {[%clk 0:02:44]} 7... Bg7 {[%clk 0:02:47.7]} 8. Be2 {[%clk 0:02:43.1]}
8... Nf6 {[%clk 0:02:48.1]} 9. O-O {[%clk 0:02:43.7]} 9... O-O {[%clk
0:02:48.7]} 10. Bf4 {[%clk 0:02:40.6]} 10... e6 {[%clk 0:02:44.1]} 11. d6 {[%clk
0:01:44]} 11... cxd6 {[%clk 0:02:36]} 12. Bxd6 {[%clk 0:01:43.9]} 12... Re8
{[%clk 0:02:36.4]} 13. c5 {[%clk 0:01:39.9]} 13... Bd7 {[%clk 0:02:29.9]} 14.
Ne5 {[%clk 0:01:37.7]} 14... Nc6 {[%clk 0:02:18.3]} 15. Nxd7 {[%clk 0:01:35.4]}
15... Qxd7 {[%clk 0:02:06.5]} 16. Qd2 {[%clk 0:01:29.1]} 16... Red8 {[%clk
0:02:05.6]} 17. Rad1 {[%clk 0:01:28.5]} 17... Ne8 {[%clk 0:02:04.9]} 18. Qe3
{[%clk 0:01:19.2]} 18... Nxd6 {[%clk 0:01:55.7]} 19. cxd6 {[%clk 0:01:07.8]}
19... Rac8 {[%clk 0:01:41.2]} 20. Ne4 {[%clk 0:01:02]} 20... Nb4 {[%clk
0:01:25.5]} 21. Bf3 {[%clk 0:00:30.2]} 21... Nd5 {[%clk 0:01:17.6]} 22. Qa3
{[%clk 0:00:30.1]} 22... f5 {[%clk 0:01:07.8]} 23. Nc5 {[%clk 0:00:29.6]} 23...
Qxd6 {[%clk 0:01:08.4]} 24. Nxb7 {[%clk 0:00:26.8]} 24... Qxa3 {[%clk
0:01:06.8]} 25. bxa3 {[%clk 0:00:27.5]} 25... Rd7 {[%clk 0:01:04.8]} 26. Na5
{[%clk 0:00:28.2]} 26... Rc2 {[%clk 0:00:52.6]} 27. Rfe1 {[%clk 0:00:26.8]}
27... Kf7 {[%clk 0:00:47.8]} 28. Nb3 {[%clk 0:00:23.5]} 28... g5 {[%clk
0:00:35.4]} 29. h3 {[%clk 0:00:23.5]} 29... Bc3 {[%clk 0:00:28.1]} 30. Re2
{[%clk 0:00:20.6]} 30... Rxe2 {[%clk 0:00:27.1]} 31. Bxe2 {[%clk 0:00:21.5]}
31... Nb6 {[%clk 0:00:25.4]} 32. Rb1 {[%clk 0:00:16.7]} 32... e5 {[%clk
0:00:21.6]} 33. Nc5 {[%clk 0:00:15.6]} 33... e4 {[%clk 0:00:21.9]} 34. Nxd7
{[%clk 0:00:15.8]} 1-0

[Event "Early-Titled-Tuesday-Blitz-October-17-2023"]
[Site "Chess.com"]
[Date "2023.10.17"]
[Round "4"]
[White "averageFM"]
[Black "InitiatingASC"]
[Result "1-0"]
[WhiteElo "2556"]
[BlackElo "2359"]
[TimeControl "180+1"]
[EndTime "8:41:01 PDT"]
[Termination "averageFM won by resignation"]

1. e4 {[%clk 0:03:00.9]} 1... c5 {[%clk 0:02:59.6]} 2. Nf3 {[%clk 0:03:00]} 2...
Nc6 {[%clk 0:03:00.3]} 3. d4 {[%clk 0:02:58.5]} 3... cxd4 {[%clk 0:03:00.4]} 4.
Nxd4 {[%clk 0:02:59.4]} 4... Nf6 {[%clk 0:03:00.7]} 5. Nc3 {[%clk 0:02:57.1]}
5... e5 {[%clk 0:03:01.2]} 6. Ndb5 {[%clk 0:02:55.9]} 6... h6 {[%clk 0:03:01.4]}
7. Nd6+ {[%clk 0:02:54.5]} 7... Bxd6 {[%clk 0:03:01]} 8. Qxd6 {[%clk 0:02:55.4]}
8... Qe7 {[%clk 0:03:01.1]} 9. Qxe7+ {[%clk 0:02:42.8]} 9... Kxe7 {[%clk
0:03:02]} 10. Be3 {[%clk 0:02:33.8]} 10... Rd8 {[%clk 0:03:01.1]} 11. O-O-O
{[%clk 0:02:32]} 11... d6 {[%clk 0:02:59.3]} 12. f3 {[%clk 0:02:31.4]} 12... Be6
{[%clk 0:02:59.3]} 13. a3 {[%clk 0:02:30.9]} 13... Rac8 {[%clk 0:02:56.5]} 14.
b3 {[%clk 0:02:18.4]} 14... Nd4 {[%clk 0:02:39.7]} 15. Kb2 {[%clk 0:02:16.1]}
15... Rxc3 {[%clk 0:02:28.3]} 16. Kxc3 {[%clk 0:02:13.7]} 16... Rc8+ {[%clk
0:02:28.7]} 17. Kd3 {[%clk 0:02:11.5]} 17... Nxc2 {[%clk 0:02:22.3]} 18. Rc1
{[%clk 0:02:02.5]} 18... Bxb3 {[%clk 0:02:21.8]} 19. Be2 {[%clk 0:02:01.7]}
19... Rc6 {[%clk 0:01:55.2]} 20. Bd1 {[%clk 0:01:50.8]} 20... Nxe3 {[%clk
0:01:21.9]} 21. Rxc6 {[%clk 0:01:49.6]} 21... Nxd1 {[%clk 0:01:14.2]} 22. Rc7+
{[%clk 0:01:39.6]} 22... Nd7 {[%clk 0:00:45.8]} 23. Rxb7 {[%clk 0:01:40.5]}
23... Ba4 {[%clk 0:00:41]} 24. Rxa7 {[%clk 0:01:23.7]} 24... Ke6 {[%clk
0:00:35.1]} 25. Kd2 {[%clk 0:01:11.7]} 25... Nf2 {[%clk 0:00:13.2]} 26. Rxa4
{[%clk 0:01:07.5]} 26... Nxh1 {[%clk 0:00:12.7]} 27. Ke2 {[%clk 0:01:07.4]}
27... f5 {[%clk 0:00:06.5]} 28. Rc4 {[%clk 0:00:58.9]} 28... fxe4 {[%clk
0:00:04.2]} 29. fxe4 {[%clk 0:00:58.4]} 29... Nc5 {[%clk 0:00:05]} 30. Rc1
{[%clk 0:00:49.9]} 30... Ng3+ {[%clk 0:00:03.7]} 31. hxg3 {[%clk 0:00:48.4]}
31... Nxe4 {[%clk 0:00:03.8]} 32. a4 {[%clk 0:00:45.9]} 32... Nxg3+ {[%clk
0:00:02]} 33. Kf3 {[%clk 0:00:45.5]} 33... Nf5 {[%clk 0:00:02.4]} 34. a5 {[%clk
0:00:45.3]} 34... Nd4+ {[%clk 0:00:02.8]} 35. Kf2 {[%clk 0:00:43]} 35... Kd5
{[%clk 0:00:02.1]} 36. a6 {[%clk 0:00:41.9]} 36... Nb5 {[%clk 0:00:02.7]} 37.
Rb1 {[%clk 0:00:40]} 37... Kc6 {[%clk 0:00:01.2]} 38. Rxb5 {[%clk 0:00:39.8]}
38... Kxb5 {[%clk 0:00:01.8]} 39. a7 {[%clk 0:00:40]} 39... Kc5 {[%clk
0:00:02.7]} 40. a8=Q {[%clk 0:00:40]} 1-0

[Event "Early-Titled-Tuesday-Blitz-October-17-2023"]
[Site "Chess.com"]
[Date "2023.10.17"]
[Round "4"]
[White "MerryPoppies"]
[Black "verrbaa"]
[Result "0-1"]
[WhiteElo "2134"]
[BlackElo "2453"]
[TimeControl "180+1"]
[EndTime "8:41:01 PDT"]
[Termination "verrbaa won by resignation"]

1. d4 {[%clk 0:03:00.9]} 1... Nf6 {[%clk 0:02:59.7]} 2. Nf3 {[%clk 0:03:00.9]}
2... g6 {[%clk 0:02:58.5]} 3. c4 {[%clk 0:03:00.4]} 3... Bg7 {[%clk 0:02:58.7]}
4. Nc3 {[%clk 0:03:00.8]} 4... d5 {[%clk 0:02:57.5]} 5. e3 {[%clk 0:02:57.8]}
5... O-O {[%clk 0:02:57]} 6. cxd5 {[%clk 0:02:57.3]} 6... Nxd5 {[%clk
0:02:56.7]} 7. Bc4 {[%clk 0:02:57.5]} 7... Nxc3 {[%clk 0:02:43]} 8. bxc3 {[%clk
0:02:58.4]} 8... c5 {[%clk 0:02:43.3]} 9. O-O {[%clk 0:02:54.5]} 9... Nc6 {[%clk
0:02:25.4]} 10. Re1 {[%clk 0:02:52]} 10... b6 {[%clk 0:02:15.7]} 11. Rb1 {[%clk
0:02:47.8]} 11... Qc7 {[%clk 0:02:12.1]} 12. Ba3 {[%clk 0:02:46.5]} 12... Bb7
{[%clk 0:01:59]} 13. dxc5 {[%clk 0:02:18.6]} 13... bxc5 {[%clk 0:01:55.7]} 14.
Qc2 {[%clk 0:02:02.4]} 14... Na5 {[%clk 0:01:50.2]} 15. Be2 {[%clk 0:01:55.4]}
15... c4 {[%clk 0:01:33.2]} 16. Rec1 {[%clk 0:01:49.9]} 16... Rfd8 {[%clk
0:01:31.3]} 17. Qa4 {[%clk 0:01:47.6]} 17... Bc6 {[%clk 0:01:09.3]} 18. Qb4
{[%clk 0:01:44.7]} 18... e6 {[%clk 0:01:09.4]} 19. Nd4 {[%clk 0:01:39.1]} 19...
Be4 {[%clk 0:01:04.7]} 20. Rb2 {[%clk 0:01:21.7]} 20... Rab8 {[%clk 0:00:37]}
21. Nb5 {[%clk 0:01:14.8]} 21... Qb6 {[%clk 0:00:17.8]} 22. Qe7 {[%clk
0:01:02.3]} 22... Bf8 {[%clk 0:00:13.6]} 23. Qxf8+ {[%clk 0:00:19.5]} 23... Rxf8
{[%clk 0:00:14.5]} 24. Bxf8 {[%clk 0:00:19.5]} 24... Rxf8 {[%clk 0:00:14.6]} 25.
Rd2 {[%clk 0:00:19.7]} 25... Qxb5 {[%clk 0:00:13.9]} 26. f3 {[%clk 0:00:20]}
26... Bc6 {[%clk 0:00:13.5]} 27. Rcd1 {[%clk 0:00:20.4]} 27... Kg7 {[%clk
0:00:11.9]} 28. Rd4 {[%clk 0:00:20.5]} 28... Qc5 {[%clk 0:00:11.8]} 29. e4
{[%clk 0:00:20.5]} 29... e5 {[%clk 0:00:11.3]} 30. Kf1 {[%clk 0:00:18.9]} 30...
exd4 {[%clk 0:00:11.6]} 31. cxd4 {[%clk 0:00:19.8]} 31... Qa3 {[%clk 0:00:11.2]}
32. Rd2 {[%clk 0:00:19.5]} 32... c3 {[%clk 0:00:10.8]} 33. Rc2 {[%clk
0:00:19.7]} 33... Ba4 {[%clk 0:00:10.8]} 34. Rxc3 {[%clk 0:00:19]} 34... Qxc3
{[%clk 0:00:10.8]} 35. Kf2 {[%clk 0:00:19.9]} 35... Nc4 {[%clk 0:00:10.6]} 36.
g3 {[%clk 0:00:20.8]} 0-1

[Event "Early-Titled-Tuesday-Blitz-October-17-2023"]
[Site "Chess.com"]
[Date "2023.10.17"]
[Round "4"]
[White "bascheyaro"]
[Black "Kostya0705"]
[Result "1-0"]
[WhiteElo "2845"]
[BlackElo "2645"]
[TimeControl "180+1"]
[EndTime "8:41:03 PDT"]
[Termination "bascheyaro won by resignation"]

1. d4 {[%clk 0:02:27.4]} 1... Nf6 {[%clk 0:02:59.1]} 2. c4 {[%clk 0:02:27.3]}
2... e6 {[%clk 0:02:59.6]} 3. Nf3 {[%clk 0:02:27.3]} 3... d5 {[%clk 0:02:59.2]}
4. Nc3 {[%clk 0:02:27.4]} 4... dxc4 {[%clk 0:02:59.7]} 5. Bg5 {[%clk 0:02:27.5]}
5... a6 {[%clk 0:02:58.3]} 6. a4 {[%clk 0:02:27.3]} 6... Nbd7 {[%clk 0:02:44.3]}
7. e3 {[%clk 0:02:26.6]} 7... Nb6 {[%clk 0:02:43.9]} 8. a5 {[%clk 0:02:15.4]}
8... Nbd5 {[%clk 0:02:40.8]} 9. e4 {[%clk 0:02:15.1]} 9... Nxc3 {[%clk
0:02:40.1]} 10. bxc3 {[%clk 0:02:16]} 10... Be7 {[%clk 0:02:40]} 11. Bxf6 {[%clk
0:02:14.6]} 11... Bxf6 {[%clk 0:02:40.5]} 12. e5 {[%clk 0:02:12.7]} 12... Be7
{[%clk 0:02:40.2]} 13. Bxc4 {[%clk 0:02:12.8]} 13... O-O {[%clk 0:02:40.3]} 14.
O-O {[%clk 0:02:11.8]} 14... c5 {[%clk 0:02:40.2]} 15. d5 {[%clk 0:02:11]} 15...
exd5 {[%clk 0:02:39.9]} 16. Bxd5 {[%clk 0:02:11.9]} 16... Rb8 {[%clk 0:02:39.4]}
17. c4 {[%clk 0:02:09.6]} 17... Qc7 {[%clk 0:02:36.7]} 18. Qb1 {[%clk
0:02:04.9]} 18... Bd7 {[%clk 0:02:34.8]} 19. Qe4 {[%clk 0:02:01.7]} 19... h6
{[%clk 0:02:28.4]} 20. Rfb1 {[%clk 0:02:01]} 20... Bc6 {[%clk 0:02:19.4]} 21.
Rb6 {[%clk 0:02:00]} 21... Bxd5 {[%clk 0:02:01.9]} 22. cxd5 {[%clk 0:02:00.9]}
22... Qd7 {[%clk 0:02:01.7]} 23. Rb3 {[%clk 0:01:15.2]} 23... Rfc8 {[%clk
0:01:56.9]} 24. Nd2 {[%clk 0:01:07.3]} 24... Rd8 {[%clk 0:01:52.4]} 25. d6
{[%clk 0:01:07]} 25... Bf8 {[%clk 0:01:53]} 26. Nc4 {[%clk 0:01:05.9]} 26... Qe6
{[%clk 0:01:51.4]} 27. Rab1 {[%clk 0:01:01.9]} 27... f6 {[%clk 0:01:48.4]} 28.
f4 {[%clk 0:00:58]} 28... fxe5 {[%clk 0:01:46.8]} 29. fxe5 {[%clk 0:00:57.7]}
29... Bxd6 {[%clk 0:01:45.2]} 30. Rb6 {[%clk 0:00:57.3]} 30... Rd7 {[%clk
0:00:47.3]} 31. Rxd6 {[%clk 0:00:55.6]} 31... Rxd6 {[%clk 0:00:45.4]} 32. Nxd6
{[%clk 0:00:55.8]} 32... Rd8 {[%clk 0:00:46.3]} 33. Rxb7 {[%clk 0:00:42.3]}
33... c4 {[%clk 0:00:35.6]} 34. Qd4 {[%clk 0:00:21.2]} 34... c3 {[%clk
0:00:26.6]} 35. Qxc3 {[%clk 0:00:21]} 35... Qd5 {[%clk 0:00:26.7]} 36. Qb3
{[%clk 0:00:19]} 1-0

[Event "Early-Titled-Tuesday-Blitz-October-17-2023"]
[Site "Chess.com"]
[Date "2023.10.17"]
[Round "4"]
[White "Byniolus"]
[Black "vladgoncharov"]
[Result "0-1"]
[WhiteElo "2791"]
[BlackElo "2567"]
[TimeControl "180+1"]
[EndTime "8:41:05 PDT"]
[Termination "vladgoncharov won on time"]

1. d4 {[%clk 0:03:00.9]} 1... Nf6 {[%clk 0:02:59.3]} 2. Nf3 {[%clk 0:03:01.1]}
2... e6 {[%clk 0:02:58.9]} 3. Bf4 {[%clk 0:03:01.4]} 3... b6 {[%clk 0:02:58.8]}
4. e3 {[%clk 0:03:01.8]} 4... Bb7 {[%clk 0:02:54.6]} 5. h3 {[%clk 0:03:01.9]}
5... Bd6 {[%clk 0:02:54.2]} 6. Bxd6 {[%clk 0:03:02]} 6... cxd6 {[%clk
0:02:53.9]} 7. Nbd2 {[%clk 0:03:02.5]} 7... d5 {[%clk 0:02:50.5]} 8. Be2 {[%clk
0:02:58.3]} 8... Qe7 {[%clk 0:02:43.5]} 9. O-O {[%clk 0:02:59.2]} 9... O-O
{[%clk 0:02:42.9]} 10. Rc1 {[%clk 0:02:55.9]} 10... Nc6 {[%clk 0:02:31.6]} 11.
c4 {[%clk 0:02:55.6]} 11... dxc4 {[%clk 0:02:31.9]} 12. Nxc4 {[%clk 0:02:56.5]}
12... Rfc8 {[%clk 0:02:27.4]} 13. Qb3 {[%clk 0:02:50.8]} 13... Rc7 {[%clk
0:02:25.9]} 14. Qa3 {[%clk 0:02:30.4]} 14... Rac8 {[%clk 0:02:24.5]} 15. Nd6
{[%clk 0:02:22.2]} 15... Nxd4 {[%clk 0:02:24.3]} 16. Nxd4 {[%clk 0:01:21.3]}
16... Rxc1 {[%clk 0:02:22]} 17. Nxb7 {[%clk 0:01:16.8]} 17... Qxa3 {[%clk
0:02:21]} 18. bxa3 {[%clk 0:01:17.7]} 18... Ne4 {[%clk 0:02:09.7]} 19. f3 {[%clk
0:01:11.7]} 19... Nd2 {[%clk 0:01:48.8]} 20. Rxc1 {[%clk 0:01:08.6]} 20... Rxc1+
{[%clk 0:01:47.2]} 21. Kf2 {[%clk 0:01:09.5]} 21... Kf8 {[%clk 0:01:40]} 22. Nd6
{[%clk 0:00:58.9]} 22... Ke7 {[%clk 0:01:34.7]} 23. Ne4 {[%clk 0:00:44.9]} 23...
Nxe4+ {[%clk 0:01:32.7]} 24. fxe4 {[%clk 0:00:45.8]} 24... g6 {[%clk 0:01:12.5]}
25. Bd3 {[%clk 0:00:26.4]} 25... Rc3 {[%clk 0:01:05.7]} 26. Ke2 {[%clk
0:00:22.7]} 26... Rxa3 {[%clk 0:01:05.3]} 27. Bc4 {[%clk 0:00:22.5]} 27... a6
{[%clk 0:00:47.6]} 28. Bb3 {[%clk 0:00:18.7]} 28... Ra5 {[%clk 0:00:46.6]} 29.
g4 {[%clk 0:00:16.3]} 29... h5 {[%clk 0:00:43.6]} 30. Nf3 {[%clk 0:00:13.3]}
30... hxg4 {[%clk 0:00:42.4]} 31. hxg4 {[%clk 0:00:14.2]} 31... Rc5 {[%clk
0:00:32.6]} 32. Kd2 {[%clk 0:00:08.7]} 32... b5 {[%clk 0:00:31.9]} 33. e5 {[%clk
0:00:05.3]} 33... a5 {[%clk 0:00:30.1]} 34. Bc2 {[%clk 0:00:03]} 34... a4 {[%clk
0:00:29.1]} 0-1

[Event "Early-Titled-Tuesday-Blitz-October-17-2023"]
[Site "Chess.com"]
[Date "2023.10.17"]
[Round "4"]
[White "Druid24"]
[Black "Cayse"]
[Result "1-0"]
[WhiteElo "2745"]
[BlackElo "2886"]
[TimeControl "180+1"]
[EndTime "8:41:06 PDT"]
[Termination "Druid24 won on time"]

1. e4 {[%clk 0:02:56.6]} 1... e5 {[%clk 0:03:00]} 2. Nf3 {[%clk 0:02:56.1]} 2...
Nc6 {[%clk 0:03:00.1]} 3. Nc3 {[%clk 0:02:51.2]} 3... Nf6 {[%clk 0:02:59.5]} 4.
Be2 {[%clk 0:02:50.7]} 4... g6 {[%clk 0:02:48.5]} 5. d4 {[%clk 0:02:50.2]} 5...
exd4 {[%clk 0:02:48.2]} 6. Nxd4 {[%clk 0:02:51.1]} 6... Bg7 {[%clk 0:02:48.5]}
7. Be3 {[%clk 0:02:51.3]} 7... O-O {[%clk 0:02:47.3]} 8. O-O {[%clk 0:02:50.3]}
8... Re8 {[%clk 0:02:45.1]} 9. Nxc6 {[%clk 0:02:49.4]} 9... bxc6 {[%clk
0:02:43.2]} 10. Bf3 {[%clk 0:02:45]} 10... Rb8 {[%clk 0:02:32.1]} 11. Rb1 {[%clk
0:02:45]} 11... a5 {[%clk 0:02:30.8]} 12. Qd2 {[%clk 0:02:45.2]} 12... d6 {[%clk
0:02:29.8]} 13. h3 {[%clk 0:02:44.5]} 13... Nd7 {[%clk 0:02:25.9]} 14. Rfe1
{[%clk 0:02:42.4]} 14... Ba6 {[%clk 0:02:15.6]} 15. b3 {[%clk 0:02:35.3]} 15...
c5 {[%clk 0:01:49.6]} 16. Rbd1 {[%clk 0:02:34]} 16... Ne5 {[%clk 0:01:34.8]} 17.
Be2 {[%clk 0:02:34.1]} 17... Bxe2 {[%clk 0:01:34.6]} 18. Qxe2 {[%clk 0:02:34.7]}
18... Nc6 {[%clk 0:01:29.6]} 19. Nd5 {[%clk 0:02:35.1]} 19... Rxe4 {[%clk
0:01:24.4]} 20. Qf3 {[%clk 0:02:33.5]} 20... Re8 {[%clk 0:01:18.8]} 21. Bd2
{[%clk 0:02:31.1]} 21... Nd4 {[%clk 0:01:15.8]} 22. Rxe8+ {[%clk 0:02:27.6]}
22... Qxe8 {[%clk 0:01:16.7]} 23. Qd3 {[%clk 0:02:28.1]} 23... c6 {[%clk
0:00:46.1]} 24. Re1 {[%clk 0:02:27.8]} 24... Ne6 {[%clk 0:00:42]} 25. Nc7 {[%clk
0:02:25.7]} 25... Qd7 {[%clk 0:00:41.1]} 26. Nxe6 {[%clk 0:02:25.3]} 26... fxe6
{[%clk 0:00:42]} 27. Bxa5 {[%clk 0:02:20.4]} 27... Ra8 {[%clk 0:00:41.9]} 28.
Qd2 {[%clk 0:02:06.8]} 28... d5 {[%clk 0:00:41.8]} 29. a4 {[%clk 0:02:05]} 29...
d4 {[%clk 0:00:35.9]} 30. Bb6 {[%clk 0:02:05.1]} 30... Qd5 {[%clk 0:00:35.2]}
31. a5 {[%clk 0:02:05]} 31... c4 {[%clk 0:00:30.5]} 32. bxc4 {[%clk 0:02:01.7]}
32... Qxc4 {[%clk 0:00:31.4]} 33. Qd3 {[%clk 0:01:57.6]} 33... Qd5 {[%clk
0:00:24.9]} 34. a6 {[%clk 0:01:57.5]} 34... c5 {[%clk 0:00:24.9]} 35. a7 {[%clk
0:01:57.4]} 35... c4 {[%clk 0:00:24.2]} 36. Qe4 {[%clk 0:01:52.6]} 36... Qxe4
{[%clk 0:00:09]} 37. Rxe4 {[%clk 0:01:53.5]} 37... e5 {[%clk 0:00:09.6]} 38. f4
{[%clk 0:01:43.3]} 38... exf4 {[%clk 0:00:09.2]} 39. Rxf4 {[%clk 0:01:44.2]}
39... d3 {[%clk 0:00:08.1]} 40. cxd3 {[%clk 0:01:44]} 40... cxd3 {[%clk
0:00:08.7]} 41. Kf2 {[%clk 0:01:40.1]} 41... Be5 {[%clk 0:00:04.4]} 42. Re4
{[%clk 0:01:34.2]} 42... Bc3 {[%clk 0:00:04.5]} 43. Ke3 {[%clk 0:01:26.2]} 43...
d2 {[%clk 0:00:04.3]} 44. Ke2 {[%clk 0:01:26.4]} 44... Kf7 {[%clk 0:00:04.8]}
45. Kd1 {[%clk 0:01:15.4]} 45... Bf6 {[%clk 0:00:03.3]} 46. Kxd2 {[%clk
0:01:12.9]} 46... Bd8 {[%clk 0:00:03.1]} 47. Bd4 {[%clk 0:01:09.3]} 47... Bc7
{[%clk 0:00:03.2]} 48. Kd3 {[%clk 0:01:09.2]} 48... Rd8 {[%clk 0:00:02.5]} 49.
Kc4 {[%clk 0:01:08.9]} 49... h5 {[%clk 0:00:03.1]} 50. Kb5 {[%clk 0:01:08.5]}
50... g5 {[%clk 0:00:03.1]} 51. Kc6 {[%clk 0:01:08.9]} 51... Bg3 {[%clk
0:00:03.2]} 52. Bb6 {[%clk 0:01:07]} 1-0